fUSD/lending_fUSD_20240726
["ID","MTS","AMOUNT","RATE_DAILY","PERIOD"]
[333277776,1722016242082,-220.592838,0.00010877,2]
[333277777,1722016242091,-456.981307,0.00010877,2]
[333277778,1722016242100,-456.981307,0.00010877,2]
[333277779,1722016242109,-1302.859212,0.00010877,2]
[333277780,1722016242119,-559.587989,0.00010877,2]
[333277781,1722016242129,-1302.859212,0.00010877,2]
[333277782,1722016242138,-559.587989,0.00010877,2]
[333277783,1722016242147,-151.0,0.00010877,2]
[333277784,1722016242156,-268.717768,0.00010877,2]
[333277785,1722016242166,-179.209839,0.00010877,2]
[333277786,1722016242175,-179.209839,0.00010877,2]
[333277787,1722016242184,-151.0,0.00010877,2]
[333277788,1722016242194,-151.0,0.00010877,2]
[333277789,1722016242203,-151.0,0.00010877,2]
[333277790,1722016242214,-160.31819,0.00010877,2]
[333277791,1722016242223,-151.0,0.00010877,2]
[333277792,1722016242233,-151.0,0.00010877,2]
[333277793,1722016242244,-160.31819,0.00010877,2]
[333277794,1722016242254,-151.0,0.00010877,2]
[333277795,1722016242264,-151.0,0.00010877,2]
[333277796,1722016242273,-151.0,0.00010877,2]
[333277797,1722016242283,-151.0,0.00010877,2]
[333277798,1722016242292,-151.0,0.00010877,2]
[333277799,1722016242301,-151.0,0.00010877,2]
[333277800,1722016242311,-151.0,0.00010877,2]
[333277801,1722016242320,-151.0,0.00010877,2]
[333277802,1722016242332,-151.0,0.00010877,2]
[333277803,1722016242341,-151.0,0.00010877,2]
[333277804,1722016242351,-151.0,0.00010877,2]
[333277805,1722016242361,-151.0,0.00010877,2]
[333277806,1722016242371,-151.0,0.00010877,2]
[333277807,1722016242381,-151.0,0.00010877,2]
[333277808,1722016242395,-151.0,0.00010877,2]
[333277809,1722016242405,-424.34312,0.00010877,2]
[333277810,1722016242461,-151.0,0.00010877,2]
[333277811,1722016242470,-151.0,0.00010877,2]
[333277812,1722016242479,-151.0,0.00010877,2]
[333277813,1722016242488,-151.0,0.00010877,2]
[333277815,1722016242497,-151.0,0.00010877,2]
[333277817,1722016242508,-151.0,0.00010877,2]
[333277818,1722016242518,-151.0,0.00010877,2]
[333277819,1722016242528,-151.0,0.00010877,2]
[333277820,1722016242537,-151.0,0.00010877,2]
[333277821,1722016242546,-151.0,0.00010877,2]
[333277822,1722016242555,-151.0,0.00010877,2]
[333277823,1722016242564,-424.34312,0.00010877,2]
[333277825,1722016242573,-151.0,0.00010877,2]
[333277826,1722016242583,-151.0,0.00010877,2]
[333277827,1722016242593,-151.0,0.00010877,2]
[333277828,1722016242602,-151.0,0.00010877,2]
[333277829,1722016242611,-260.609262,0.00010877,2]
[333277830,1722016242620,-151.0,0.00010877,2]
[333277831,1722016242630,-151.0,0.00010877,2]
[333277832,1722016242639,-773.766825,0.00010877,2]
[333277833,1722016242649,-773.766825,0.00010877,2]
[333277834,1722016242658,-391.266722,0.00010877,2]
[333277836,1722016242667,-151.0,0.00010877,2]
[333277838,1722016242675,-151.0,0.00010877,2]
[333277839,1722016242684,-391.266722,0.00010877,2]
[333277841,1722016242693,-156.194621,0.00010877,2]
[333277843,1722016242703,-153.252855,0.00010877,2]
[333277845,1722016242712,-151.0,0.00010877,2]
[333277847,1722016242722,-440.889384,0.00010877,2]
[333277849,1722016242731,-440.889384,0.00010877,2]
[333277851,1722016242741,-440.889384,0.00010877,2]
[333277852,1722016242750,-440.889384,0.00010877,2]
[333277853,1722016242759,-477.076469,0.00010877,2]
[333277854,1722016242768,-477.076469,0.00010877,2]
[333277855,1722016242777,-477.076469,0.00010877,2]
[333277856,1722016242787,-477.076469,0.00010877,2]
[333277857,1722016242796,-3011.121431,0.00010877,2]
[333277858,1722016242805,-3011.121431,0.00010877,2]
[333277859,1722016242815,-651.446577,0.00010877,2]
[333277860,1722016242824,-651.446577,0.00010877,2]
[333277861,1722016242833,-3011.121431,0.00010877,2]
[333277862,1722016242842,-3011.121431,0.00010877,2]
[333277863,1722016242851,-651.446577,0.00010877,2]
[333277864,1722016242862,-651.446577,0.00010877,2]
[333277865,1722016242871,-232.250033,0.00010877,2]
[333277866,1722016242880,-232.250033,0.00010877,2]
[333277867,1722016242890,-205.009705,0.00010877,2]
[333277868,1722016242899,-205.009705,0.00010877,2]
[333277869,1722016242910,-381.88,0.00010877,2]
[333277870,1722016242920,-381.88,0.00010877,2]
[333277871,1722016242930,-205.009705,0.00010877,2]
[333277872,1722016242939,-205.009705,0.00010877,2]
[333277873,1722016242948,-406.250005,0.00010877,2]
[333277874,1722016242958,-406.250005,0.00010877,2]
[333277875,1722016242967,-381.88,0.00010877,2]
[333277876,1722016242976,-381.88,0.00010877,2]
[333277877,1722016242986,-406.250005,0.00010877,2]
[333277878,1722016242996,-406.250005,0.00010877,2]
[333277879,1722016243005,-151.0,0.00010877,2]
[333277880,1722016243014,-300.412647,0.00010877,2]
[333277881,1722016243023,-300.412647,0.00010877,2]
[333277882,1722016243033,-151.0,0.00010877,2]
[333277883,1722016243042,-151.0,0.00010877,2]
[333277884,1722016243051,-300.412647,0.00010877,2]
[333277885,1722016243060,-300.412647,0.00010877,2]
[333277886,1722016243069,-749.571043,0.00010877,2]
[333277887,1722016243080,-749.571043,0.00010877,2]
[333277888,1722016243089,-749.571043,0.00010877,2]
[333277889,1722016243098,-749.571043,0.00010877,2]
[333277890,1722016243107,-151.0,0.00010877,2]
[333277891,1722016243116,-151.0,0.00010877,2]
[333277892,1722016243125,-341.891925,0.00010877,2]
[333277893,1722016243134,-341.891925,0.00010877,2]
[333277894,1722016243144,-341.891925,0.00010877,2]
[333277895,1722016243153,-522.614374,0.00010877,2]
[333277896,1722016243162,-341.891925,0.00010877,2]
[333277897,1722016243171,-522.614374,0.00010877,2]
[333277898,1722016243181,-243.199444,0.00010877,2]
[333277899,1722016243191,-243.199444,0.00010877,2]
[333277901,1722016243200,-522.614374,0.00010877,2]
[333277903,1722016243209,-522.614374,0.00010877,2]
[333277905,1722016243220,-243.199444,0.00010877,2]
[333277907,1722016243229,-243.199444,0.00010877,2]
[333277908,1722016243240,-228.143139,0.00010877,2]
[333277909,1722016243250,-228.143139,0.00010877,2]
[333277910,1722016243259,-228.143139,0.00010877,2]
[333277911,1722016243269,-228.143139,0.00010877,2]
[333277912,1722016243278,-382.632596,0.00010877,2]
[333277913,1722016243288,-382.632596,0.00010877,2]
[333277914,1722016243296,-382.632596,0.00010877,2]
[333277915,1722016243306,-382.632596,0.00010877,2]
[333277916,1722016243315,-1559.628116,0.00010877,2]
[333277917,1722016243324,-1559.628116,0.00010877,2]
[333277918,1722016243336,-1559.628116,0.00010877,2]
[333277919,1722016243345,-1559.628116,0.00010877,2]
[333277920,1722016243354,-401.960004,0.00010877,2]
[333277921,1722016243363,-401.960004,0.00010877,2]
[333277922,1722016243372,-401.960004,0.00010877,2]
[333277924,1722016243382,-401.960004,0.00010877,2]
[333277925,1722016243395,-652.270888,0.00010877,2]
[333277926,1722016243405,-652.270888,0.00010877,2]
[333277927,1722016243414,-652.270888,0.00010877,2]
[333277928,1722016243423,-652.270888,0.00010877,2]
[333277929,1722016243434,-720.878398,0.00010877,2]
[333277930,1722016243444,-720.878398,0.00010877,2]
[333277931,1722016243454,-720.878398,0.00010877,2]
[333277932,1722016243465,-720.878398,0.00010877,2]
[333277933,1722016243474,-328.979206,0.00010877,2]
[333277934,1722016243484,-328.979206,0.00010877,2]
[333277935,1722016243494,-328.979206,0.00010877,2]
[333277936,1722016243503,-328.979206,0.00010877,2]
[333277937,1722016243512,-1278.117096,0.00010877,2]
[333277938,1722016243522,-1278.117096,0.00010877,2]
[333277939,1722016243531,-1278.117096,0.00010877,2]
[333277940,1722016243540,-1278.117096,0.00010877,2]
[333277941,1722016243550,-274.407836,0.00010877,2]
[333277942,1722016243559,-2150.129094,0.00010877,2]
[333277943,1722016243569,-274.407836,0.00010877,2]
[333277944,1722016243579,-2150.129094,0.00010877,2]
[333277945,1722016243589,-274.407836,0.00010877,2]
[333277946,1722016243598,-2150.129094,0.00010877,2]
[333277947,1722016243609,-274.407836,0.00010877,2]
[333277948,1722016243618,-2150.129094,0.00010877,2]
[333277949,1722016243627,-151.0,0.00010877,2]
[333277950,1722016243636,-151.0,0.00010877,2]
[333277951,1722016243646,-151.0,0.00010877,2]
[333277952,1722016243657,-151.0,0.00010877,2]
[333277953,1722016243666,-275.772,0.00010877,2]
[333277954,1722016243675,-275.772,0.00010877,2]
[333277955,1722016243686,-275.772,0.00010877,2]
[333277956,1722016243695,-275.772,0.00010877,2]
[333277957,1722016243704,-151.0,0.00010877,2]
[333277958,1722016243715,-277.904756,0.00010877,2]
[333277959,1722016243726,-151.0,0.00010877,2]
[333277960,1722016243737,-151.0,0.00010877,2]
[333277961,1722016243747,-1065.69718,0.00010877,2]
[333277962,1722016243760,-1065.69718,0.00010877,2]
[333277963,1722016243769,-484.629761,0.00010877,2]
[333277964,1722016243781,-484.629761,0.00010877,2]
[333277965,1722016243791,-1065.69718,0.00010877,2]
[333277966,1722016243801,-1065.69718,0.00010877,2]
[333277967,1722016243811,-484.629761,0.00010877,2]
[333277968,1722016243821,-484.629761,0.00010877,2]
[333277969,1722016243830,-151.0,0.00010877,2]
[333277970,1722016243839,-274.52,0.00010877,2]
[333277971,1722016243848,-5061.391773,0.00010877,2]
[333277972,1722016243857,-5061.391773,0.00010877,2]
[333277973,1722016243866,-5061.391773,0.00010877,2]
[333277974,1722016243876,-5061.391773,0.00010877,2]
[333277975,1722016243886,-628.919073,0.00010877,2]
[333277976,1722016243894,-628.919073,0.00010877,2]
[333277977,1722016243904,-628.919073,0.00010877,2]
[333277978,1722016243913,-628.919073,0.00010877,2]
[333277979,1722016243922,-151.0,0.00010877,2]
[333277980,1722016243932,-151.0,0.00010877,2]
[333277981,1722016243943,-212.936986,0.00010877,2]
[333277982,1722016243954,-151.0,0.00010877,2]
[333277983,1722016243963,-314.09927,0.00010877,2]
[333277984,1722016243973,-314.09927,0.00010877,2]
[333277985,1722016243983,-314.09927,0.00010877,2]
[333277986,1722016243993,-314.09927,0.00010877,2]
[333277987,1722016244002,-151.0,0.00010877,2]
[333277988,1722016244012,-151.0,0.00010877,2]
[333277989,1722016244022,-178.473543,0.00010877,2]
[333277990,1722016244030,-178.473543,0.00010877,2]
[333277991,1722016244040,-178.473543,0.00010877,2]
[333277992,1722016244049,-178.473543,0.00010877,2]
[333277993,1722016244060,-151.0,0.00010877,2]
[333277994,1722016244069,-151.0,0.00010877,2]
[333277995,1722016244080,-151.0,0.00010877,2]
[333277996,1722016244090,-151.0,0.00010877,2]
[333277997,1722016244099,-151.0,0.00010877,2]
[333277998,1722016244108,-151.0,0.00010877,2]
[333277999,1722016244117,-201.908464,0.00010877,2]
[333278000,1722016244126,-594.505402,0.00010877,2]
[333278001,1722016244135,-594.505402,0.00010877,2]
[333278002,1722016244144,-594.505402,0.00010877,2]
[333278003,1722016244154,-594.505402,0.00010877,2]
[333278004,1722016244162,-1101.092371,0.00010877,2]
[333278005,1722016244171,-1101.092371,0.00010877,2]
[333278006,1722016244180,-1101.092371,0.00010877,2]
[333278007,1722016244190,-1101.092371,0.00010877,2]
[333278008,1722016244199,-1101.092371,0.00010877,2]
[333278009,1722016244208,-1101.092371,0.00010877,2]
[333278010,1722016244217,-1096.074623,0.00010877,2]
[333278011,1722016244226,-1096.074623,0.00010877,2]
[333278012,1722016244235,-1096.074623,0.00010877,2]
[333278013,1722016244245,-228.74699,0.00010877,2]
[333278014,1722016244254,-1096.074623,0.00010877,2]
[333278015,1722016244264,-228.74699,0.00010877,2]
[333278016,1722016244275,-1096.074623,0.00010877,2]
[333278017,1722016244285,-1096.074623,0.00010877,2]
[333278018,1722016244294,-297.280153,0.00010877,2]
[333278019,1722016244303,-297.280153,0.00010877,2]
[333278020,1722016244312,-297.280153,0.00010877,2]
[333278021,1722016244321,-228.74699,0.00010877,2]
[333278022,1722016244330,-228.74699,0.00010877,2]
[333278023,1722016244339,-752.83188167,0.00010879,2]
[333278024,1722016244348,-153.16842,0.00010879,2]
[333278025,1722016244358,-284563.56663411,0.0001088,2]
[333278026,1722016244367,-190.995074,0.0001088,2]
[333278027,1722016244377,-190.995074,0.0001088,2]
[333278028,1722016244389,-570.891918,0.0001088,2]
[333278029,1722016244398,-151.0,0.0001088,2]
[333278030,1722016244407,-389.036202,0.0001088,2]
[333278031,1722016244417,-570.891918,0.0001088,2]
[333278032,1722016244426,-389.036202,0.0001088,2]
[333278033,1722016244437,-199.799714,0.0001088,2]
[333278034,1722016244446,-401.483511,0.0001088,2]
[333278035,1722016244455,-199.799714,0.0001088,2]
[333278036,1722016244468,-484.9,0.0001088,2]
[333278037,1722016244477,-151.0,0.0001088,2]
[333278038,1722016244487,-359.931866,0.0001088,2]
[333278039,1722016244496,-484.9,0.0001088,2]
[333278040,1722016244505,-359.931866,0.0001088,2]
[333278041,1722016244515,-151.0,0.0001088,2]
[333278042,1722016244523,-151.0,0.0001088,2]
[333278043,1722016244532,-645.991845,0.0001088,2]
[333278044,1722016244541,-645.991845,0.0001088,2]
[333278045,1722016244551,-151.0,0.0001088,2]
[333278046,1722016244560,-226.520639,0.0001088,2]
[333278047,1722016244569,-151.0,0.0001088,2]
[333278048,1722016244580,-151.0,0.0001088,2]
[333278049,1722016244589,-151.0,0.0001088,2]
[333278050,1722016244598,-151.0,0.0001088,2]
[333278051,1722016244607,-151.0,0.0001088,2]
[333278052,1722016244616,-151.0,0.0001088,2]
[333278053,1722016244625,-151.0,0.0001088,2]
[333278054,1722016244634,-151.0,0.0001088,2]
[333278055,1722016244643,-206.513492,0.0001088,2]
[333278056,1722016244652,-151.0,0.0001088,2]
[333278057,1722016244661,-206.513492,0.0001088,2]
[333278058,1722016244670,-151.0,0.0001088,2]
[333278059,1722016244679,-151.0,0.0001088,2]
[333278060,1722016244687,-151.0,0.0001088,2]
[333278061,1722016244696,-151.0,0.0001088,2]
[333278062,1722016244706,-220.592838,0.0001088,2]
[333278063,1722016244715,-220.592838,0.0001088,2]
[333278064,1722016244725,-456.981307,0.0001088,2]
[333278065,1722016244734,-456.981307,0.0001088,2]
[333278066,1722016244743,-1302.859212,0.0001088,2]
[333278067,1722016244752,-559.587989,0.0001088,2]
[333278068,1722016244761,-1302.859212,0.0001088,2]
[333278069,1722016244770,-559.587989,0.0001088,2]
[333278070,1722016244779,-151.0,0.0001088,2]
[333278071,1722016244788,-179.209839,0.0001088,2]
[333278072,1722016244797,-179.209839,0.0001088,2]
[333278073,1722016244806,-151.0,0.0001088,2]
[333278074,1722016244816,-151.0,0.0001088,2]
[333278075,1722016244825,-151.0,0.0001088,2]
[333278076,1722016244835,-160.31819,0.0001088,2]
[333278077,1722016244844,-151.0,0.0001088,2]
[333278078,1722016244853,-151.0,0.0001088,2]
[333278079,1722016244862,-160.31819,0.0001088,2]
[333278080,1722016244871,-424.34312,0.0001088,2]
[333278081,1722016244880,-424.34312,0.0001088,2]
[333278082,1722016244889,-151.0,0.0001088,2]
[333278083,1722016244898,-158.144799,0.0001088,2]
[333278084,1722016244907,-773.766825,0.0001088,2]
[333278085,1722016244916,-773.766825,0.0001088,2]
[333278086,1722016244926,-391.266722,0.0001088,2]
[333278087,1722016244935,-151.0,0.0001088,2]
[333278088,1722016244944,-151.0,0.0001088,2]
[333278089,1722016244953,-391.266722,0.0001088,2]
[333278090,1722016244962,-255.114978,0.0001088,2]
[333278091,1722016244971,-440.889384,0.0001088,2]
[333278092,1722016244980,-440.889384,0.0001088,2]
[333278093,1722016244989,-477.076469,0.0001088,2]
[333278094,1722016244998,-477.076469,0.0001088,2]
[333278095,1722016245007,-3011.121431,0.0001088,2]
[333278096,1722016245016,-651.446577,0.0001088,2]
[333278097,1722016245026,-3011.121431,0.0001088,2]
[333278098,1722016245036,-651.446577,0.0001088,2]
[333278099,1722016245048,-232.250033,0.0001088,2]
[333278100,1722016245059,-232.250033,0.0001088,2]
[333278101,1722016245068,-205.009705,0.0001088,2]
[333278102,1722016245077,-381.88,0.0001088,2]
[333278103,1722016245086,-205.009705,0.0001088,2]
[333278104,1722016245095,-406.250005,0.0001088,2]
[333278105,1722016245104,-381.88,0.0001088,2]
[333278106,1722016245113,-406.250005,0.0001088,2]
[333278107,1722016245123,-300.412647,0.0001088,2]
[333278108,1722016245132,-151.0,0.0001088,2]
[333278109,1722016245141,-300.412647,0.0001088,2]
[333278110,1722016245150,-749.571043,0.0001088,2]
[333278111,1722016245159,-749.571043,0.0001088,2]
[333278112,1722016245168,-151.0,0.0001088,2]
[333278113,1722016245178,-341.891925,0.0001088,2]
[333278114,1722016245187,-341.891925,0.0001088,2]
[333278115,1722016245196,-522.614374,0.0001088,2]
[333278116,1722016245205,-243.199444,0.0001088,2]
[333278117,1722016245215,-522.614374,0.0001088,2]
[333278118,1722016245224,-243.199444,0.0001088,2]
[333278119,1722016245233,-228.143139,0.0001088,2]
[333278120,1722016245242,-228.143139,0.0001088,2]
[333278121,1722016245252,-382.632596,0.0001088,2]
[333278122,1722016245261,-382.632596,0.0001088,2]
[333278123,1722016245270,-1559.628116,0.0001088,2]
[333278124,1722016245279,-1559.628116,0.0001088,2]
[333278125,1722016245288,-401.960004,0.0001088,2]
[333278126,1722016245297,-401.960004,0.0001088,2]
[333278127,1722016245307,-652.270888,0.0001088,2]
[333278128,1722016245317,-652.270888,0.0001088,2]
[333278129,1722016245327,-720.878398,0.0001088,2]
[333278130,1722016245337,-720.878398,0.0001088,2]
[333278131,1722016245347,-328.979206,0.0001088,2]
[333278132,1722016245357,-328.979206,0.0001088,2]
[333278133,1722016245366,-1278.117096,0.0001088,2]
[333278134,1722016245376,-1278.117096,0.0001088,2]
[333278135,1722016245387,-274.407836,0.0001088,2]
[333278136,1722016245397,-2150.129094,0.0001088,2]
[333278137,1722016245407,-274.407836,0.0001088,2]
[333278138,1722016245416,-2150.129094,0.0001088,2]
[333278139,1722016245427,-151.0,0.0001088,2]
[333278140,1722016245437,-275.772,0.0001088,2]
[333278141,1722016245448,-275.772,0.0001088,2]
[333278142,1722016245458,-151.0,0.0001088,2]
[333278143,1722016245469,-1065.69718,0.0001088,2]
[333278144,1722016245479,-484.629761,0.0001088,2]
[333278145,1722016245488,-1065.69718,0.0001088,2]
[333278146,1722016245498,-484.629761,0.0001088,2]
[333278147,1722016245508,-5061.391773,0.0001088,2]
[333278148,1722016245517,-5061.391773,0.0001088,2]
[333278149,1722016245527,-628.919073,0.0001088,2]
[333278150,1722016245537,-628.919073,0.0001088,2]
[333278151,1722016245546,-151.0,0.0001088,2]
[333278152,1722016245556,-314.09927,0.0001088,2]
[333278153,1722016245566,-314.09927,0.0001088,2]
[333278154,1722016245575,-151.0,0.0001088,2]
[333278155,1722016245586,-178.473543,0.0001088,2]
[333278156,1722016245596,-178.473543,0.0001088,2]
[333278157,1722016245605,-151.0,0.0001088,2]
[333278158,1722016245615,-151.0,0.0001088,2]
[333278159,1722016245624,-594.505402,0.0001088,2]
[333278160,1722016245633,-594.505402,0.0001088,2]
[333278161,1722016245643,-1101.092371,0.0001088,2]
[333278162,1722016245652,-1101.092371,0.0001088,2]
[333278163,1722016245662,-1096.074623,0.0001088,2]
[333278165,1722016245672,-228.74699,0.0001088,2]
[333278166,1722016245682,-1096.074623,0.0001088,2]
[333278168,1722016245691,-297.280153,0.0001088,2]
[333278170,1722016245700,-228.74699,0.0001088,2]
[333278172,1722016245710,-150.0,0.00010883,2]
[333278174,1722016245720,-1000.0,0.0001089,2]
[333278176,1722016245729,-150.0,0.00010897,2]
[333278178,1722016245739,-275.772,0.00010898,2]
[333278180,1722016245748,-275.772,0.00010898,2]
[333278182,1722016245757,-5061.391773,0.00010898,2]
[333278184,1722016245767,-5061.391773,0.00010898,2]
[333278186,1722016245777,-151.0,0.00010898,2]
[333278188,1722016245787,-314.09927,0.00010898,2]
[333278190,1722016245796,-314.09927,0.00010898,2]
[333278192,1722016245806,-151.0,0.00010898,2]
[333278193,1722016245815,-151.0,0.00010898,2]
[333278195,1722016245826,-1101.092371,0.00010898,2]
[333278197,1722016245837,-1101.092371,0.00010898,2]
[333278199,1722016245847,-1096.074623,0.00010898,2]
[333278201,1722016245856,-1096.074623,0.00010898,2]
[333278203,1722016245865,-297.280153,0.00010898,2]
[333278205,1722016245875,-1829.0,0.00010898,2]
[333278206,1722016245885,-362.0,0.00010898,2]
[333278207,1722016245895,-1254.0,0.00010898,2]
[333278208,1722016245905,-1657.546,0.00010898,2]
[333278209,1722016245915,-445.0,0.00010898,2]
[333278211,1722016245925,-450.0,0.00010898,2]
[333278213,1722016245935,-164.325,0.00010898,2]
[333278214,1722016245944,-2421.815,0.00010898,2]
[333278216,1722016245954,-1995.0,0.00010898,2]
[333278218,1722016245964,-583.367,0.00010898,2]
[333278220,1722016245974,-151.01,0.00010898,2]
[333278222,1722016245983,-252.351,0.00010898,2]
[333278224,1722016245993,-36725.266,0.00010898,2]
[333278226,1722016246003,-1135.081,0.00010898,2]
[333278228,1722016246012,-150.0,0.00010898,2]
[333278230,1722016246022,-645.991845,0.00010899,2]
[333278232,1722016246032,-645.991845,0.00010899,2]
[333278234,1722016246041,-151.0,0.00010899,2]
[333278236,1722016246051,-151.0,0.00010899,2]
[333278238,1722016246060,-181.897159,0.00010899,2]
[333278240,1722016246070,-151.0,0.00010899,2]
[333278241,1722016246080,-151.0,0.00010899,2]
[333278243,1722016246090,-151.0,0.00010899,2]
[333278245,1722016246100,-151.0,0.00010899,2]
[333278247,1722016246110,-151.0,0.00010899,2]
[333278248,1722016246120,-151.0,0.00010899,2]
[333278249,1722016246130,-206.513492,0.00010899,2]
[333278250,1722016246141,-151.0,0.00010899,2]
[333278251,1722016246150,-206.513492,0.00010899,2]
[333278252,1722016246160,-151.0,0.00010899,2]
[333278253,1722016246170,-151.0,0.00010899,2]
[333278254,1722016246180,-151.0,0.00010899,2]
[333278255,1722016246191,-151.0,0.00010899,2]
[333278256,1722016246201,-220.592838,0.00010899,2]
[333278257,1722016246211,-220.592838,0.00010899,2]
[333278258,1722016246221,-456.981307,0.00010899,2]
[333278259,1722016246230,-456.981307,0.00010899,2]
[333278260,1722016246240,-1302.859212,0.00010899,2]
[333278261,1722016246250,-559.587989,0.00010899,2]
[333278262,1722016246259,-1302.859212,0.00010899,2]
[333278263,1722016246270,-559.587989,0.00010899,2]
[333278264,1722016246279,-151.0,0.00010899,2]
[333278265,1722016246289,-179.209839,0.00010899,2]
[333278266,1722016246299,-179.209839,0.00010899,2]
[333278267,1722016246310,-151.0,0.00010899,2]
[333278268,1722016246321,-151.0,0.00010899,2]
[333278269,1722016246331,-151.0,0.00010899,2]
[333278270,1722016246342,-160.31819,0.00010899,2]
[333278271,1722016246352,-151.0,0.00010899,2]
[333278272,1722016246367,-160.31819,0.00010899,2]
[333278274,1722016246377,-424.34312,0.00010899,2]
[333278275,1722016246391,-424.34312,0.00010899,2]
[333278276,1722016246400,-151.0,0.00010899,2]
[333278277,1722016246410,-773.766825,0.00010899,2]
[333278278,1722016246420,-773.766825,0.00010899,2]
[333278279,1722016246431,-151.0,0.00010899,2]
[333278280,1722016246441,-440.889384,0.00010899,2]
[333278281,1722016246451,-440.889384,0.00010899,2]
[333278282,1722016246463,-477.076469,0.00010899,2]
[333278283,1722016246473,-477.076469,0.00010899,2]
[333278284,1722016246484,-3011.121431,0.00010899,2]
[333278285,1722016246493,-651.446577,0.00010899,2]
[333278286,1722016246503,-3011.121431,0.00010899,2]
[333278287,1722016246512,-651.446577,0.00010899,2]
[333278288,1722016246522,-232.250033,0.00010899,2]
[333278289,1722016246532,-232.250033,0.00010899,2]
[333278290,1722016246542,-205.009705,0.00010899,2]
[333278291,1722016246552,-381.88,0.00010899,2]
[333278292,1722016246562,-205.009705,0.00010899,2]
[333278293,1722016246571,-406.250005,0.00010899,2]
[333278294,1722016246582,-381.88,0.00010899,2]
[333278295,1722016246592,-406.250005,0.00010899,2]
[333278296,1722016246603,-300.412647,0.00010899,2]
[333278298,1722016246614,-151.0,0.00010899,2]
[333278300,1722016246623,-300.412647,0.00010899,2]
[333278301,1722016246633,-749.571043,0.00010899,2]
[333278303,1722016246643,-749.571043,0.00010899,2]
[333278305,1722016246653,-151.0,0.00010899,2]
[333278306,1722016246663,-341.891925,0.00010899,2]
[333278307,1722016246673,-341.891925,0.00010899,2]
[333278308,1722016246683,-522.614374,0.00010899,2]
[333278309,1722016246693,-243.199444,0.00010899,2]
[333278310,1722016246703,-522.614374,0.00010899,2]
[333278311,1722016246713,-243.199444,0.00010899,2]
[333278312,1722016246723,-228.143139,0.00010899,2]
[333278313,1722016246733,-228.143139,0.00010899,2]
[333278315,1722016246743,-382.632596,0.00010899,2]
[333278317,1722016246753,-382.632596,0.00010899,2]
[333278319,1722016246762,-1559.628116,0.00010899,2]
[333278321,1722016246772,-1559.628116,0.00010899,2]
[333278323,1722016246782,-401.960004,0.00010899,2]
[333278325,1722016246792,-401.960004,0.00010899,2]
[333278327,1722016246802,-652.270888,0.00010899,2]
[333278329,1722016246812,-652.270888,0.00010899,2]
[333278332,1722016246822,-720.878398,0.00010899,2]
[333278333,1722016246832,-720.878398,0.00010899,2]
[333278336,1722016246843,-328.979206,0.00010899,2]
[333278338,1722016246853,-328.979206,0.00010899,2]
[333278340,1722016246863,-328.979206,0.00010899,2]
[333278342,1722016246873,-328.979206,0.00010899,2]
[333278344,1722016246883,-1278.117096,0.00010899,2]
[333278346,1722016246893,-1278.117096,0.00010899,2]
[333278348,1722016246903,-1278.117096,0.00010899,2]
[333278350,1722016246912,-274.407836,0.00010899,2]
[333278352,1722016246922,-2150.129094,0.00010899,2]
[333278354,1722016246932,-1278.117096,0.00010899,2]
[333278356,1722016246942,-274.407836,0.00010899,2]